[Event "Reykjavik Open 2022"]
[Site "Reykjavik"]
[Date "2022.04.08"]
[Round "4.14"]
[White "Mishra, Abhimanyu"]
[Black "Burlacu, Bogdan"]
[Result "1-0"]
[ECO "D43"]
[WhiteElo "2505"]
[BlackElo "2294"]
[Annotator "RC"]
[PlyCount "58"]
[EventDate "2022.04.06"]
[EventCountry "ISL"]
[SourceTitle "playchess.com"]
[Source "ChessBase"]
[SourceQuality "1"]
[TimeControl "40/5400+30:1800+30"]

1. d4 {[%emt 0:00:03]} d5 {[%emt 0:00:06]} 2. c4 {[%emt 0:00:07]} c6 {[%emt 0:00:05]} 3. Nf3 {[%emt 0:00:18]} Nf6 {[%emt 0:00:06]} 4. Nc3 {[%emt 0:00:13]} e6 {[%emt 0:00:48]} 5. Qd3 {[%emt 0:00:44]} Nbd7 {[%emt 0:01:57]} 6. e4 {[%emt 0:02:55]} dxe4 {[%emt 0:09:26]} 7. Nxe4 {[%emt 0:00:15]} Nxe4 {[%emt 0:01:41]} 8. Qxe4 {[%emt 0:00:10]} Nf6 {[%emt 0:00:10]} 9. Qe3 {[%emt 0:10:23]} c5 {[%emt 0:13:26]} 10. dxc5 {[%emt 0:16:22]} Qa5+ {[%emt 0:01:22]} 11. Bd2 {[%emt 0:00:36]} Qxc5 {[%emt 0:00:07]} 12. Bd3 {[%emt 0:01:33]} b6 {[%emt 0:11:36]} 13. O-O {[%emt 0:09:39]} Bb7 {[%emt 0:02:39]} 14. Qe2 {[%emt 0:10:41]} Be7 {[%emt 0:05:48]} 15. Ne5 {[%emt 0:02:12]} O-O {[%emt 0:06:28]} 16. Rad1 {[%emt 0:03:15]} Rad8 {[%emt 0:07:30]} 17. Bc3 {[%emt 0:04:52]} Qc7 {[%emt 0:23:17]} 18. Rfe1 {[%emt 0:09:25]} Ba8 {[%emt 0:04:24]} 19. Qe3 {[%emt 0:09:44]} Bc5 {[%emt 0:03:57]} 20. Qh3 {[%emt 0:01:46]} h6 {[%emt 0:03:44]} 21. b4 {[%emt 0:07:10]} Bd6 {[%emt 0:00:32]} 22. Qe3 {[%emt 0:04:00]} Qb7 {[%emt 0:01:24]} 23. f3 {[%emt 0:01:05]} a5 {[%emt 0:00:39]} 24. a3 {[%emt 0:00:35]} axb4 {[%emt 0:00:03]} 25. axb4 {[%emt 0:00:05]} Qe7 {[%emt 0:00:07]} 26. Rb1 {[%emt 0:01:10]} Nd7 {[%emt 0:01:17]} 27. Ng4 {[%emt 0:01:32]} e5 {[%emt 0:00:25]} 28. Bf5 {[%emt 0:01:11]} Rfe8 {[%emt 0:00:42]} 29. f4 {[%emt 0:02:53]} e4 1-0

[Event "Reykjavik Open 2022"]
[Site "Reykjavik"]
[Date "2022.04.08"]
[Round "4.15"]
[White "Libiszewski, Fabien"]
[Black "Cherniack, Alex"]
[Result "1-0"]
[ECO "C77"]
[WhiteElo "2505"]
[BlackElo "2213"]
[Annotator "RC"]
[PlyCount "47"]
[EventDate "2022.04.06"]
[EventCountry "ISL"]
[SourceTitle "playchess.com"]
[Source "ChessBase"]
[SourceQuality "1"]
[TimeControl "40/5400+30:1800+30"]

1. e4 {[%emt 0:00:04]} e5 {[%emt 0:00:06]} 2. Nf3 {[%emt 0:00:07]} Nc6 {[%emt 0:00:05]} 3. Bb5 {[%emt 0:00:10]} a6 {[%emt 0:00:12]} 4. Ba4 {[%emt 0:00:08]} Nf6 {[%emt 0:00:07]} 5. d3 {[%emt 0:00:13]} Bd6 {[%emt 0:00:41]} 6. c3 {[%emt 0:03:38]} O-O {[%emt 0:01:01]} 7. Nbd2 {[%emt 0:01:37]} b5 {[%emt 0:00:36]} 8. Bc2 {[%emt 0:00:32]} Re8 {[%emt 0:01:03]} 9. Nf1 {[%emt 0:01:39]} h6 {[%emt 0:00:26]} 10. a4 {[%emt 0:06:20]} Rb8 {[%emt 0:02:18]} 11. axb5 {[%emt 0:25:27]} axb5 {[%emt 0:00:08]} 12. Ne3 {[%emt 0:00:34]} Bc5 {[%emt 0:07:00]} 13. Bb3 {[%emt 0:08:18]} d6 {[%emt 0:02:44]} 14. O-O {[%emt 0:01:12]} Be6 {[%emt 0:14:21]} 15. Nd5 {[%emt 0:19:35]} Bxd5 {[%emt 0:02:21]} 16. exd5 {[%emt 0:00:03]} Ne7 {[%emt 0:00:17]} 17. Nh4 {[%emt 0:00:19]} Qd7 {[%emt 0:11:48]} 18. c4 {[%emt 0:05:00]} g5 {[%emt 0:11:03]} 19. Nf3 {[%emt 0:00:28]} Nf5 {[%emt 0:03:11]} 20. cxb5 {[%emt 0:00:42]} Bb6 {[%emt 0:00:23]} 21. Bc4 {[%emt 0:01:46]} Kg7 {[%emt 0:03:23]} 22. Nd2 {[%emt 0:03:11]} Kg6 {[%emt 0:11:56]} 23. Ne4 {[%emt 0:02:25]} Nh5 {[%emt 0:03:14]} 24. Qxh5+ {[%emt 0:00:22]} 1-0

[Event "Reykjavik Open 2022"]
[Site "Reykjavik"]
[Date "2022.04.08"]
[Round "4.16"]
[White "Beerdsen, Thomas"]
[Black "Player, Edmund C"]
[Result "1-0"]
[ECO "C12"]
[WhiteElo "2508"]
[BlackElo "2196"]
[Annotator "RC"]
[PlyCount "51"]
[EventDate "2022.04.06"]
[EventCountry "ISL"]
[SourceTitle "playchess.com"]
[Source "ChessBase"]
[SourceQuality "1"]
[TimeControl "40/5400+30:1800+30"]

1. e4 {[%emt 0:00:04]} e6 {[%emt 0:00:05]} 2. d4 {[%emt 0:00:05]} d5 {[%emt 0:00:03]} 3. Nc3 {[%emt 0:00:06]} Nf6 {[%emt 0:00:08]} 4. Bg5 {[%emt 0:00:24]} h6 {[%emt 0:00:38]} 5. Bxf6 {[%emt 0:00:52]} Qxf6 {[%emt 0:00:05]} 6. a3 {[%emt 0:00:52]} c6 {[%emt 0:00:44]} 7. Nf3 {[%emt 0:01:40]} Nd7 {[%emt 0:00:21]} 8. Bd3 {[%emt 0:02:25]} Qd8 {[%emt 0:00:27]} 9. O-O {[%emt 0:11:21]} Be7 {[%emt 0:01:08]} 10. Re1 {[%emt 0:01:02]} O-O {[%emt 0:03:46]} 11. Qe2 {[%emt 0:05:01]} Bd6 {[%emt 0:17:54]} 12. Qe3 {[%emt 0:05:19]} a5 {[%emt 0:31:02]} 13. e5 {[%emt 0:04:58]} Bc7 {[%emt 0:11:25]} 14. Ne2 {[%emt 0:00:38]} f5 {[%emt 0:01:44]} 15. Nf4 {[%emt 0:04:12]} Re8 {[%emt 0:03:22]} 16. Kh1 {[%emt 0:01:27]} b6 {[%emt 0:13:33]} 17. Rg1 {[%emt 0:01:28]} Ba6 {[%emt 0:02:06]} 18. g4 {[%emt 0:00:14]} Bxd3 {[%emt 0:00:43]} 19. Qxd3 {[%emt 0:00:07]} fxg4 {[%emt 0:00:33]} 20. Rxg4 {[%emt 0:00:06]} Nf8 {[%emt 0:00:20]} 21. Rag1 {[%emt 0:01:58]} Re7 {[%emt 0:00:13]} 22. Nh5 {[%emt 0:00:18]} Bb8 {[%emt 0:06:20]} 23. Nf6+ {[%emt 0:01:17]} Kh8 {[%emt 0:00:12]} 24. Nh4 {[%emt 0:00:08]} Raa7 {[%emt 0:02:22]} 25. Qh7+ {[%emt 0:00:08]} Nxh7 {[%emt 0:00:06]} 26. Ng6# {[%emt 0:00:04]} 1-0

[Event "Reykjavik Open 2022"]
[Site "Reykjavik"]
[Date "2022.04.08"]
[Round "4.17"]
[White "Lohia, Sohum"]
[Black "Willow, Jonah B"]
[Result "1/2-1/2"]
[ECO "B41"]
[WhiteElo "2251"]
[BlackElo "2365"]
[Annotator "RC"]
[PlyCount "104"]
[EventDate "2022.04.06"]
[EventCountry "ISL"]
[SourceTitle "playchess.com"]
[Source "ChessBase"]
[SourceQuality "1"]
[TimeControl "40/5400+30:1800+30"]

1. e4 {[%emt 0:00:05]} c5 {[%emt 0:00:09]} 2. Nf3 {[%emt 0:00:09]} e6 {[%emt 0:00:30]} 3. d4 {[%emt 0:00:14]} cxd4 {[%emt 0:00:06]} 4. Nxd4 {[%emt 0:00:07]} a6 {[%emt 0:00:17]} 5. c4 {[%emt 0:00:21]} Nf6 {[%emt 0:00:20]} 6. Nc3 {[%emt 0:00:13]} Bb4 {[%emt 0:00:19]} 7. Qd3 {[%emt 0:03:44]} d6 {[%emt 0:01:23]} 8. f3 {[%emt 0:05:55]} Nbd7 {[%emt 0:07:49]} 9. a3 {[%emt 0:06:49]} Ne5 {[%emt 0:04:15]} 10. Qc2 {[%emt 0:01:28]} Bc5 {[%emt 0:01:08]} 11. Be3 {[%emt 0:01:05]} O-O {[%emt 0:01:36]} 12. Be2 {[%emt 0:10:36]} Qc7 {[%emt 0:06:46]} 13. O-O {[%emt 0:06:37]} Nxc4 {[%emt 0:25:52]} 14. Bxc4 {[%emt 0:01:27]} Bxd4 {[%emt 0:00:30]} 15. Bxd4 {[%emt 0:00:14]} Qxc4 {[%emt 0:00:05]} 16. Bxf6 {[%emt 0:01:04]} Qc5+ {[%emt 0:01:18]} 17. Qf2 {[%emt 0:00:46]} Qxf2+ {[%emt 0:02:51]} 18. Rxf2 {[%emt 0:00:28]} gxf6 {[%emt 0:00:04]} 19. Rd1 {[%emt 0:00:30]} Rd8 {[%emt 0:01:15]} 20. Rfd2 {[%emt 0:00:35]} Kf8 {[%emt 0:00:40]} 21. Rxd6 {[%emt 0:00:59]} Rxd6 {[%emt 0:00:12]} 22. Rxd6 {[%emt 0:00:08]} Ke7 {[%emt 0:00:14]} 23. Rd2 {[%emt 0:02:58]} Bd7 {[%emt 0:00:09]} 24. Kf2 {[%emt 0:01:35]} Rg8 {[%emt 0:01:50]} 25. Ke3 {[%emt 0:01:29]} Rg5 {[%emt 0:00:31]} 26. h4 {[%emt 0:12:30]} Rh5 {[%emt 0:06:04]} 27. g3 {[%emt 0:00:16]} f5 {[%emt 0:00:50]} 28. exf5 {[%emt 0:17:39]} Rxf5 {[%emt 0:00:15]} 29. f4 {[%emt 0:00:35]} h5 {[%emt 0:03:46]} 30. b4 {[%emt 0:02:50]} Rf6 {[%emt 0:06:37]} 31. Ne4 {[%emt 0:04:56]} Rg6 {[%emt 0:01:19]} 32. Kf2 {[%emt 0:00:24]} Bc6 {[%emt 0:02:50]} 33. Nc5 {[%emt 0:01:22]} Rg8 {[%emt 0:01:22]} 34. Nb3 {[%emt 0:02:31]} Rc8 {[%emt 0:06:41]} 35. Rc2 {[%emt 0:00:40]} Rd8 {[%emt 0:00:34]} 36. Rd2 {[%emt 0:08:46]} Bd5 {[%emt 0:00:16]} 37. Nd4 {[%emt 0:00:47]} Be4 {[%emt 0:03:49]} 38. Ke3 {[%emt 0:00:41]} f5 {[%emt 0:00:18]} 39. Nb3 {[%emt 0:01:19]} Rg8 {[%emt 0:01:01]} 40. Kf2 {[%emt 0:00:00]} Rc8 {[%emt 0:00:00]} 41. Nc5 {[%emt 0:01:21]} Bd5 {[%emt 0:02:13]} 42. Ke3 {[%emt 0:07:06]} b6 {[%emt 0:04:28]} 43. Na4 {[%emt 0:01:06]} Rc6 {[%emt 0:14:38]} 44. Rd3 {[%emt 0:01:46]} Be4 {[%emt 0:10:22]} 45. Rc3 {[%emt 0:00:44]} Rd6 {[%emt 0:00:02]} 46. Nb2 {[%emt 0:01:01]} b5 {[%emt 0:01:33]} 47. Nd3 {[%emt 0:02:01]} Bxd3 {[%emt 0:02:30]} 48. Rxd3 {[%emt 0:00:04]} Rxd3+ {[%emt 0:01:44]} 49. Kxd3 {[%emt 0:00:07]} Kd7 {[%emt 0:00:04]} 50. Ke3 {[%emt 0:00:16]} Kc6 {[%emt 0:00:05]} 51. Kd4 {[%emt 0:01:13]} Kd6 {[%emt 0:00:05]} 52. Ke3 {[%emt 0:00:07]} Kc6 {[%emt 0:02:44]} 1/2-1/2

[Event "Reykjavik Open 2022"]
[Site "Reykjavik"]
[Date "2022.04.08"]
[Round "4.18"]
[White "Sukandar, Irine Kharisma"]
[Black "Rice, Chris B"]
[Result "1-0"]
[ECO "B13"]
[WhiteElo "2378"]
[BlackElo "1989"]
[Annotator "RC"]
[PlyCount "93"]
[EventDate "2022.04.06"]
[EventCountry "ISL"]
[SourceTitle "playchess.com"]
[Source "ChessBase"]
[SourceQuality "1"]
[TimeControl "40/5400+30:1800+30"]

1. e4 {[%emt 0:00:23]} c6 {[%emt 0:00:18]} 2. d4 {[%emt 0:00:46]} d5 {[%emt 0:00:22]} 3. exd5 {[%emt 0:00:23]} cxd5 {[%emt 0:00:14]} 4. Bd3 {[%emt 0:00:31]} Nc6 {[%emt 0:00:57]} 5. c3 {[%emt 0:00:06]} Nf6 {[%emt 0:01:43]} 6. Bf4 {[%emt 0:00:35]} Bg4 {[%emt 0:01:07]} 7. Qb3 {[%emt 0:00:28]} Qd7 {[%emt 0:00:43]} 8. Nd2 {[%emt 0:00:21]} e6 {[%emt 0:02:03]} 9. Ngf3 {[%emt 0:00:25]} Bd6 {[%emt 0:31:09]} 10. Bxd6 {[%emt 0:06:17]} Qxd6 {[%emt 0:00:19]} 11. O-O {[%emt 0:06:00]} O-O {[%emt 0:02:25]} 12. Rae1 {[%emt 0:00:13]} Qc7 {[%emt 0:07:24]} 13. Ne5 {[%emt 0:03:54]} Nxe5 {[%emt 0:03:21]} 14. dxe5 {[%emt 0:01:50]} Nd7 {[%emt 0:01:30]} 15. Qb4 {[%emt 0:04:27]} Bh5 {[%emt 0:09:53]} 16. Qh4 {[%emt 0:04:12]} Bg6 {[%emt 0:01:05]} 17. Bxg6 {[%emt 0:00:30]} fxg6 {[%emt 0:02:49]} 18. Nf3 {[%emt 0:04:06]} Rae8 {[%emt 0:08:32]} 19. Nd4 {[%emt 0:02:14]} a6 {[%emt 0:00:14]} 20. Re3 {[%emt 0:00:44]} Nb8 {[%emt 0:06:03]} 21. Rfe1 {[%emt 0:04:35]} Qe7 {[%emt 0:03:02]} 22. Qg4 {[%emt 0:05:32]} Nc6 {[%emt 0:00:15]} 23. Nf3 {[%emt 0:06:48]} b5 {[%emt 0:01:25]} 24. a4 {[%emt 0:01:22]} Rb8 {[%emt 0:05:18]} 25. Ra1 {[%emt 0:04:18]} Rb6 {[%emt 0:03:42]} 26. axb5 {[%emt 0:03:12]} axb5 {[%emt 0:00:14]} 27. b4 {[%emt 0:05:29]} Re8 {[%emt 0:02:27]} 28. Re2 {[%emt 0:01:01]} Qf7 {[%emt 0:00:43]} 29. Qg5 {[%emt 0:00:45]} Qf5 {[%emt 0:00:34]} 30. Qe3 {[%emt 0:00:15]} Reb8 {[%emt 0:00:55]} 31. h3 {[%emt 0:00:38]} h6 {[%emt 0:00:27]} 32. Rea2 {[%emt 0:01:09]} Qe4 {[%emt 0:01:21]} 33. Ra8 {[%emt 0:06:58]} Qxe3 {[%emt 0:01:11]} 34. fxe3 {[%emt 0:00:07]} Rxa8 {[%emt 0:00:38]} 35. Rxa8+ {[%emt 0:00:02]} Kf7 {[%emt 0:00:49]} 36. Kf2 {[%emt 0:00:50]} g5 {[%emt 0:00:28]} 37. g4 {[%emt 0:02:27]} Ke7 {[%emt 0:00:32]} 38. Kg2 {[%emt 0:08:06]} Kf7 {[%emt 0:00:17]} 39. Kg3 {[%emt 0:00:14]} Ke7 {[%emt 0:00:42]} 40. h4 {[%emt 0:00:00]} gxh4+ {[%emt 0:00:00]} 41. Kxh4 {[%emt 0:01:55]} Kf7 {[%emt 0:02:33]} 42. Kh5 {[%emt 0:05:47]} Rb7 {[%emt 0:05:45]} 43. g5 {[%emt 0:09:24]} g6+ {[%emt 0:00:04]} 44. Kxh6 {[%emt 0:03:33]} Ne7 {[%emt 0:00:51]} 45. Nd4 {[%emt 0:00:28]} Rb6 {[%emt 0:08:54]} 46. Ra7 {[%emt 0:03:57]} Rb8 {[%emt 0:04:51]} 47. Rxe7+ {[%emt 0:01:00]} 1-0

[Event "Reykjavik Open 2022"]
[Site "Reykjavik"]
[Date "2022.04.08"]
[Round "4.19"]
[White "Gudmundsson, Gunnar Erik"]
[Black "Martin, Julian"]
[Result "0-1"]
[ECO "E32"]
[WhiteElo "1906"]
[BlackElo "2388"]
[Annotator "RC"]
[PlyCount "54"]
[EventDate "2022.04.06"]
[EventCountry "ISL"]
[SourceTitle "playchess.com"]
[Source "ChessBase"]
[SourceQuality "1"]
[TimeControl "40/5400+30:1800+30"]

1. d4 {[%emt 0:00:07]} Nf6 {[%emt 0:00:39]} 2. c4 {[%emt 0:00:11]} e6 {[%emt 0:00:05]} 3. Nc3 {[%emt 0:00:18]} Bb4 {[%emt 0:00:05]} 4. Qc2 {[%emt 0:00:28]} b6 {[%emt 0:00:04]} 5. Bg5 {[%emt 0:01:26]} c5 {[%emt 0:03:39]} 6. dxc5 {[%emt 0:04:53]} Bxc5 {[%emt 0:03:51]} 7. e4 {[%emt 0:03:00]} h6 {[%emt 0:21:51]} 8. Bh4 {[%emt 0:01:41]} Nc6 {[%emt 0:08:18]} 9. Nf3 {[%emt 0:05:20]} d6 {[%emt 0:11:28]} 10. Rd1 {[%emt 0:12:05]} Qe7 {[%emt 0:03:06]} 11. a3 {[%emt 0:03:45]} a5 {[%emt 0:01:32]} 12. Be2 {[%emt 0:04:10]} g5 {[%emt 0:12:40]} 13. Bg3 {[%emt 0:03:04]} Nh5 {[%emt 0:01:42]} 14. Na4 {[%emt 0:21:38]} Nxg3 {[%emt 0:02:12]} 15. hxg3 {[%emt 0:00:16]} Bb7 {[%emt 0:10:52]} 16. Nxc5 {[%emt 0:03:53]} bxc5 {[%emt 0:02:54]} 17. Qd2 {[%emt 0:02:42]} O-O-O {[%emt 0:00:13]} 18. O-O {[%emt 0:02:39]} f6 {[%emt 0:01:10]} 19. Ne1 {[%emt 0:04:02]} h5 {[%emt 0:00:15]} 20. Nc2 {[%emt 0:00:41]} h4 {[%emt 0:02:19]} 21. g4 {[%emt 0:01:10]} h3 {[%emt 0:02:18]} 22. gxh3 {[%emt 0:01:59]} Rxh3 {[%emt 0:00:39]} 23. Kg2 {[%emt 0:00:25]} Qh7 {[%emt 0:01:36]} 24. Rg1 {[%emt 0:08:21]} Ne5 {[%emt 0:00:21]} 25. f3 {[%emt 0:01:53]} Rh2+ {[%emt 0:00:30]} 26. Kf1 {[%emt 0:00:09]} Qh3+ {[%emt 0:00:06]} 27. Ke1 {[%emt 0:00:06]} Qh4+ {[%emt 0:00:07]} 0-1

[Event "Reykjavik Open 2022"]
[Site "Reykjavik"]
[Date "2022.04.08"]
[Round "4.20"]
[White "Haraldsson, Haraldur"]
[Black "Thorfinnsson, Bjorn"]
[Result "0-1"]
[ECO "A06"]
[WhiteElo "1936"]
[BlackElo "2387"]
[Annotator "RC"]
[PlyCount "96"]
[EventDate "2022.04.06"]
[EventCountry "ISL"]
[SourceTitle "playchess.com"]
[Source "ChessBase"]
[SourceQuality "1"]
[TimeControl "40/5400+30:1800+30"]

1. Nf3 {[%emt 0:00:07]} d5 {[%emt 0:05:56]} 2. e3 {[%emt 0:00:41]} Nf6 {[%emt 0:00:38]} 3. c4 {[%emt 0:00:34]} e6 {[%emt 0:01:03]} 4. b3 {[%emt 0:00:20]} Nbd7 {[%emt 0:01:50]} 5. Bb2 {[%emt 0:01:21]} c6 {[%emt 0:02:50]} 6. Be2 {[%emt 0:08:03]} Qc7 {[%emt 0:04:14]} 7. cxd5 {[%emt 0:02:50]} exd5 {[%emt 0:00:09]} 8. Nc3 {[%emt 0:00:35]} Bd6 {[%emt 0:02:10]} 9. Qc2 {[%emt 0:07:04]} Nc5 {[%emt 0:04:33]} 10. h3 {[%emt 0:02:13]} Ne6 {[%emt 0:04:08]} 11. O-O-O {[%emt 0:10:49]} Bd7 {[%emt 0:01:24]} 12. g4 {[%emt 0:00:37]} O-O-O {[%emt 0:04:55]} 13. Kb1 {[%emt 0:03:43]} Rhe8 {[%emt 0:01:34]} 14. d4 {[%emt 0:10:34]} h5 {[%emt 0:01:18]} 15. Ne5 {[%emt 0:02:35]} Re7 {[%emt 0:02:33]} 16. f4 {[%emt 0:15:13]} Rh8 {[%emt 0:01:20]} 17. g5 {[%emt 0:00:39]} Ne8 {[%emt 0:02:03]} 18. g6 {[%emt 0:08:53]} Bxe5 {[%emt 0:00:09]} 19. dxe5 {[%emt 0:00:25]} fxg6 {[%emt 0:03:25]} 20. Qxg6 {[%emt 0:01:18]} d4 {[%emt 0:02:34]} 21. Ne4 {[%emt 0:02:54]} dxe3 {[%emt 0:03:48]} 22. Nd6+ {[%emt 0:00:18]} Kb8 {[%emt 0:00:23]} 23. Qg3 {[%emt 0:02:17]} g6 {[%emt 0:04:35]} 24. Qxe3 {[%emt 0:07:10]} Rf8 {[%emt 0:01:57]} 25. Rhf1 {[%emt 0:04:41]} N6g7 {[%emt 0:11:12]} 26. Qc3 {[%emt 0:02:41]} b6 {[%emt 0:02:18]} 27. Ka1 {[%emt 0:00:46]} Nf5 {[%emt 0:04:37]} 28. Ne4 {[%emt 0:00:20]} Neg7 {[%emt 0:01:47]} 29. b4 {[%emt 0:00:40]} Ne6 {[%emt 0:02:00]} 30. Nf6 {[%emt 0:01:20]} Bc8 {[%emt 0:00:19]} 31. Bc4 {[%emt 0:00:25]} Rd8 {[%emt 0:01:34]} 32. a3 {[%emt 0:00:30]} Rxd1+ {[%emt 0:01:29]} 33. Rxd1 {[%emt 0:00:01]} Nxf4 {[%emt 0:00:09]} 34. Qf3 {[%emt 0:00:11]} g5 {[%emt 0:05:04]} 35. Nxh5 {[%emt 0:00:41]} Nxh5 {[%emt 0:00:05]} 36. Qxh5 {[%emt 0:00:07]} Ne3 {[%emt 0:00:07]} 37. Rc1 {[%emt 0:00:24]} Nxc4 {[%emt 0:00:17]} 38. Rxc4 {[%emt 0:00:05]} Rxe5 {[%emt 0:00:18]} 39. Qh8 {[%emt 0:03:35]} Re6 {[%emt 0:02:00]} 40. Rc1 {[%emt 0:00:00]} Qf7 {[%emt 0:00:00]} 41. Rg1 {[%emt 0:12:52]} Re8 {[%emt 0:04:15]} 42. Be5+ {[%emt 0:02:59]} Ka8 {[%emt 0:03:57]} 43. Qf6 {[%emt 0:00:52]} Qd5 {[%emt 0:01:13]} 44. Bb2 {[%emt 0:07:15]} Bxh3 {[%emt 0:02:54]} 45. Bc1 {[%emt 0:03:09]} Re2 {[%emt 0:01:59]} 46. Bb2 {[%emt 0:02:59]} Be6 {[%emt 0:00:10]} 47. Kb1 {[%emt 0:00:38]} Qa2+ {[%emt 0:04:15]} 48. Kc1 {[%emt 0:00:12]} Bf5 {[%emt 0:00:24]} 0-1

[Event "Reykjavik Open 2022"]
[Site "Reykjavik"]
[Date "2022.04.08"]
[Round "4.21"]
[White "Mitra, Akash"]
[Black "Fantinel, Thibault"]
[Result "0-1"]
[ECO "B31"]
[WhiteElo "1866"]
[BlackElo "2376"]
[Annotator "RC"]
[PlyCount "64"]
[EventDate "2022.04.06"]
[EventCountry "ISL"]
[SourceTitle "playchess.com"]
[Source "ChessBase"]
[SourceQuality "1"]
[TimeControl "40/5400+30:1800+30"]

1. e4 {[%emt 0:00:08]} c5 {[%emt 0:00:27]} 2. Nf3 {[%emt 0:00:21]} Nc6 {[%emt 0:01:13]} 3. Bb5 {[%emt 0:00:29]} g6 {[%emt 0:00:38]} 4. O-O {[%emt 0:01:00]} Bg7 {[%emt 0:00:07]} 5. Re1 {[%emt 0:01:46]} Nf6 {[%emt 0:00:14]} 6. c3 {[%emt 0:01:45]} O-O {[%emt 0:00:14]} 7. d4 {[%emt 0:01:09]} d5 {[%emt 0:00:17]} 8. e5 {[%emt 0:04:51]} Ne4 {[%emt 0:00:06]} 9. Nbd2 {[%emt 0:01:08]} Nxd2 {[%emt 0:00:50]} 10. Bxd2 {[%emt 0:02:41]} Qb6 {[%emt 0:00:05]} 11. Bxc6 {[%emt 0:01:45]} bxc6 {[%emt 0:03:59]} 12. Qb3 {[%emt 0:02:05]} Bg4 {[%emt 0:07:34]} 13. Qxb6 {[%emt 0:05:31]} axb6 {[%emt 0:00:10]} 14. dxc5 {[%emt 0:05:12]} bxc5 {[%emt 0:05:00]} 15. Be3 {[%emt 0:07:30]} Bxf3 {[%emt 0:12:16]} 16. gxf3 {[%emt 0:00:09]} c4 {[%emt 0:00:50]} 17. Bc5 {[%emt 0:02:05]} Rfb8 {[%emt 0:01:59]} 18. Re2 {[%emt 0:16:48]} e6 {[%emt 0:01:56]} 19. a3 {[%emt 0:03:46]} Rb5 {[%emt 0:05:01]} 20. Bd6 {[%emt 0:01:38]} Ra7 {[%emt 0:02:51]} 21. Rc1 {[%emt 0:03:48]} Bh6 {[%emt 0:02:07]} 22. Rcc2 {[%emt 0:00:07]} Bf4 {[%emt 0:00:16]} 23. h4 {[%emt 0:00:37]} f6 {[%emt 0:02:47]} 24. Kg2 {[%emt 0:02:04]} Kf7 {[%emt 0:00:29]} 25. Kh3 {[%emt 0:02:33]} h5 {[%emt 0:00:26]} 26. Re1 {[%emt 0:04:45]} Rab7 {[%emt 0:02:10]} 27. Bb4 {[%emt 0:11:02]} Bxe5 {[%emt 0:08:25]} 28. a4 {[%emt 0:01:26]} R5b6 {[%emt 0:01:21]} 29. Ra1 {[%emt 0:03:44]} Ra6 {[%emt 0:00:17]} 30. Ra3 {[%emt 0:02:16]} Bc7 {[%emt 0:01:10]} 31. Rc1 {[%emt 0:01:57]} Bb6 {[%emt 0:00:29]} 32. Bd6 {[%emt 0:01:48]} Bxf2 {[%emt 0:01:21]} 0-1

[Event "Reykjavik Open 2022"]
[Site "Reykjavik"]
[Date "2022.04.08"]
[Round "4.22"]
[White "Hedman, Erik"]
[Black "Sigamoney, Cyril S"]
[Result "0-1"]
[ECO "A11"]
[WhiteElo "2368"]
[BlackElo "1960"]
[Annotator "RC"]
[PlyCount "72"]
[EventDate "2022.04.06"]
[EventCountry "ISL"]
[SourceTitle "playchess.com"]
[Source "ChessBase"]
[SourceQuality "1"]
[TimeControl "40/5400+30:1800+30"]

1. Nf3 {[%emt 0:00:03]} d5 {[%emt 0:00:22]} 2. c4 {[%emt 0:00:16]} c6 {[%emt 0:00:06]} 3. e3 {[%emt 0:00:13]} Nf6 {[%emt 0:00:15]} 4. Nc3 {[%emt 0:00:17]} e6 {[%emt 0:07:25]} 5. b3 {[%emt 0:00:05]} Bd6 {[%emt 0:01:16]} 6. Bb2 {[%emt 0:00:06]} O-O {[%emt 0:00:37]} 7. Be2 {[%emt 0:00:10]} a6 {[%emt 0:08:02]} 8. Qc2 {[%emt 0:06:41]} Qe7 {[%emt 0:08:46]} 9. h3 {[%emt 0:13:57]} Ba3 {[%emt 0:05:59]} 10. Bxa3 {[%emt 0:05:40]} Qxa3 {[%emt 0:00:20]} 11. O-O {[%emt 0:01:04]} Nbd7 {[%emt 0:00:20]} 12. d4 {[%emt 0:00:06]} Qe7 {[%emt 0:00:20]} 13. e4 {[%emt 0:06:54]} dxe4 {[%emt 0:00:06]} 14. Nxe4 {[%emt 0:00:25]} Nxe4 {[%emt 0:00:06]} 15. Qxe4 {[%emt 0:00:03]} c5 {[%emt 0:34:51]} 16. Rfd1 {[%emt 0:07:54]} f5 {[%emt 0:11:33]} 17. Qe3 {[%emt 0:20:06]} cxd4 {[%emt 0:02:11]} 18. Rxd4 {[%emt 0:00:09]} e5 {[%emt 0:00:47]} 19. Rad1 {[%emt 0:10:36]} Re8 {[%emt 0:04:23]} 20. Rd6 {[%emt 0:02:29]} f4 {[%emt 0:01:59]} 21. Qd2 {[%emt 0:04:29]} Nf6 {[%emt 0:00:16]} 22. c5 {[%emt 0:02:48]} Bf5 {[%emt 0:01:01]} 23. Bc4+ {[%emt 0:01:59]} Kh8 {[%emt 0:00:14]} 24. Re1 {[%emt 0:11:42]} Ne4 {[%emt 0:06:02]} 25. Qd5 {[%emt 0:00:04]} Nxd6 {[%emt 0:00:38]} 26. cxd6 {[%emt 0:01:25]} Qf6 {[%emt 0:01:52]} 27. Rxe5 {[%emt 0:00:21]} Rf8 {[%emt 0:01:34]} 28. Re7 {[%emt 0:02:09]} h6 {[%emt 0:01:21]} 29. Ne5 {[%emt 0:00:41]} Kh7 {[%emt 0:00:37]} 30. Qxb7 {[%emt 0:00:20]} Rad8 {[%emt 0:00:16]} 31. Nf7 {[%emt 0:00:35]} Rb8 {[%emt 0:00:29]} 32. Qd5 {[%emt 0:00:29]} Bg6 {[%emt 0:00:21]} 33. Ne5 {[%emt 0:00:06]} Bf5 {[%emt 0:00:31]} 34. Nc6 {[%emt 0:00:48]} Rbc8 {[%emt 0:00:59]} 35. a4 {[%emt 0:01:26]} Qg6 {[%emt 0:00:30]} 36. Ne5 {[%emt 0:01:54]} Qf6 0-1